Cogmind - Beta 14 @@@ ROGUE MODE // 2024.11.26 @ 23:54:31 Player: Tech Result: Destroyed by Y6-4JB(R) with Subdweller Shrapnel Launcher Performance ------------- Evolutions (0) 0 Regions Visited (2) 400 Robots Destroyed (23) 115 Value Destroyed (346) 346 Prototype IDs (0) 0 Alien Tech Used (0) 0 Bonus (0) 0 TOTAL SCORE: 861 Bonus ------- None Cogmind --------- Core Integrity 0/250 Matter 300/300 Energy 98/100 System Corruption 0% Temperature Cool (1) Movement Walking (120) Location -10/Subcaves Parts ------- > --- POWER (1) -------- (None) > --- PROPULSION (2) --- Aluminum Leg > --- UTILITY (2) ------ Small Storage Unit Signal Interpreter > --- WEAPON (2) ------- Barrage Gun > --- INVENTORY (8) ---- Ion Engine Structural Scanner Subdweller Optics Beam Cannon Battle Rifle Peak State ------------ > --- POWER ------------ Subdweller Power Source > --- PROPULSION ------- Aluminum Leg Aluminum Leg > --- UTILITY ---------- Small Storage Unit Signal Interpreter > --- WEAPON ----------- Beam Cannon Barrage Gun > --- INVENTORY -------- Ion Engine Light Ion Engine Subdweller Power Source Structural Scanner Subdweller Optics Beam Cannon Battle Rifle [Rating: 11] Favorites ----------- Power Subdweller Power Source Engine Subdweller Power Source Propulsion Aluminum Leg Leg Aluminum Leg Wheel Wheel Utility Small Storage Unit Device Structural Scanner Storage Small Storage Unit Processor Signal Interpreter Weapon Beam Cannon Energy Gun EM Pulse Gun Energy Cannon Beam Cannon Ballistic Gun Barrage Gun Launcher Grenade Launcher Build | -11 -10 -10 ------- Run | Yrd Mat Sub Slots Evolved . | . . . Power . | . . . Propulsion . | . . . Utility . | . . . Weapon . | . . . Parts Attached 26 | 8 13 5 Power 5 | 1 2 2 Engine 5 | 1 2 2 Core . | . . . Reactor . | . . . Propulsion 5 | 3 2 . Treads . | . . . Leg 2 | . 2 . Wheel 3 | 3 . . Hover . | . . . Flight . | . . . Utility 5 | 1 3 1 Device 1 | . 1 . Storage 2 | 1 . 1 Processor 2 | . 2 . Hackware . | . . . Protection . | . . . Artifact . | . . . Weapon 11 | 3 6 2 Energy Gun 2 | 2 . . Energy Cannon 3 | . 3 . Ballistic Gun 3 | 1 1 1 Ballistic Cannon . | . . . Launcher 3 | . 2 1 Special Weapon . | . . . Impact Weapon . | . . . Slashing Weapon . | . . . Piercing Weapon . | . . . Special Melee Weapon . | . . . Unidentified Prototypes . | . . . Parts Lost 6 | . 2 4 Power 1 | . . 1 Propulsion 2 | . 1 1 Utility . | . . . Weapon 3 | . 1 2 Highest Loss Streak 3 | . 2 3 To Critical Strikes 1 | . 1 . Average Slot Usage (%) 95 | . 89 99 Engine 14 | . 14 14 Leg 25 | . 20 27 Wheel 2 | . 6 . Device 3 | . 3 2 Storage 10 | . 10 11 Processor 11 | . 7 14 Energy Gun 1 | . 3 . Energy Cannon 16 | . 11 19 Ballistic Gun 3 | . 3 4 Launcher 6 | . 8 4 Peak Build Rating 11 | 6 8 11 Average Rating 7 | 5 6 8 On Entrance 4 | . 6 7 Naked Turns . | . . . Heaviest Build 16 | 12 16 16 Greatest Support 26 | 26 20 20 Greatest Overweight (x) 1 | . 1 1 Average Overweight (x) . | . . . Largest Inventory Capacity 8 | 8 8 8 Average Capacity 7 | 7 7 7 Most Carried 8 | 5 8 7 Average Carried 4 | 2 4 5 Final Capacity 8 | 8 5 8 Final Carried 5 | 5 4 5 Class Distribution -------------------- 100% | Mutant Dominant Class ---------------- Mutant | -10/Materials Mutant | -10/Subcaves Resources | -11 -10 -10 ----------- Run | Yrd Mat Sub Matter Collected 730 | 280 169 281 Remotely . | . . . Salvage Created 714 | 156 390 168 Parts 43 | 8 30 5 Haulers Intercepted . | . . . Recyclers Shooed 3 | . 3 . Parts Field Recycled . | . . . Retrieved Matter . | . . . Parts Self-Destructed 6 | . . 6 Prevented . | . . . Kills | -11 -10 -10 ------- Run | Yrd Mat Sub Combat Hostiles Destroyed 13 | . 8 5 Guns 8 | . 8 . Cannons 4 | . . 4 AOE 1 | . . 1 Classes Destroyed 8 | 2 4 2 Worker 1 | . 1 . Builder 2 | . 2 . Tunneler 3 | 2 1 . Recycler 3 | 1 2 . Watcher 1 | . 1 . Swarmer 8 | . 8 . Artisan 1 | . . 1 Subdweller 5 | . . 5 Best Kill Streak 10 | 3 10 2 Combat Bots Only 6 | . 6 2 Max Kills in Single Turn 1 | 1 1 1 Gunslinging . | . . . Exploded 1 | . . 1 Melee . | . . . Uniques/NPCs Destroyed . | . . . Combat | -11 -10 -10 -------- Run | Yrd Mat Sub Hostile Shots Fired 93 | . 62 31 Missed 29 | . 19 10 Damage Taken 1095 | . 364 731 Core 268 | . 119 149 Absorbed by Shields . | . . . Core Remaining (%) 100 | 100 . . Volleys Fired 75 | 7 45 23 Largest 2 | 2 2 2 Hottest 120 | 80 120 120 Shots Fired 114 | 14 54 46 Gun 61 | 14 43 4 Cannon 35 | . 3 32 Launcher 18 | . 8 10 Special . | . . . Kinetic 35 | . 31 4 Thermal 47 | 7 8 32 Explosive 18 | . 8 10 Electromagnetic 14 | 7 7 . Robot Hit Streak 8 | 4 6 8 Robot Miss Streak 7 | 1 7 2 Penetration Max . | . . . Secondary Targets 1 | . 1 . Max Gunslinging Chain 1 | . 1 . Shots Hit Robots 57 | 8 22 27 Core Hits 33 | 4 18 11 Critical Kills . | . . . Critical Parts Destroyed . | . . . Critical Strikes . | . . . Melee Attacks . | . . . Impact . | . . . Slashing . | . . . Piercing . | . . . Sneak Attacks . | . . . Combat Hostiles . | . . . Follow-up Attacks . | . . . Damage Inflicted 1250 | 97 347 806 Guns 385 | 97 241 47 Cannons 348 | . 34 314 Explosions 516 | . 71 445 Melee . | . . . Ramming 1 | . 1 . Kinetic 194 | . 147 47 Thermal 436 | 43 79 314 Explosive 516 | . 71 445 Electromagnetic 103 | 54 49 . Impact . | . . . Slashing . | . . . Piercing . | . . . Highest Corruption . | . . . Average Corruption . | . . . Corruption Purged . | . . . Corruption Blocked . | . . . Overload Shots . | . . . Overflow Damage 2 | . . 2 Projectiles . | . . . Explosions 2 | . . 2 Melee . | . . . Knockbacks . | . . . Impact . | . . . Kinetic . | . . . Secondary . | . . . Self-Inflicted Damage 48 | . 16 32 Shots 2 | . 1 1 Rammed 1 | . 1 . Targets Rammed 1 | . 1 . Kicked . | . . . Crushed . | . . . Highest Temperature 90 | 54 90 14 Average Temperature 28 | 22 39 7 Received Heat Transfer 42 | . . 42 Siege Activations . | . . . Robots Corrupted . | . . . Combat Hostiles . | . . . Parts Fried . | . . . Impact Corruptions . | . . . Robots Melted . | . . . Combat Hostiles . | . . . Parts Melted 2 | . 1 1 Heat Transferred 940 | 100 174 666 Parts Sabotaged . | . . . Parts Stolen . | . . . Parts Stripped . | . . . Power Chain Reactions . | . . . Alert | -11 -10 -10 ------- Run | Yrd Mat Sub Peak Influence 249 | 15 249 . Initial 9 | . 9 . Average 71 | 4 80 . Maximum Alert Level 1 | . 1 . Low Security (%) 96 | 100 95 . Level 1 3 | . 4 . Level 2 . | . . . Level 3 . | . . . Level 4 . | . . . Level 5 . | . . . High Security . | . . . Max Security . | . . . Squads Dispatched . | . . . Investigation . | . . . Extermination . | . . . Reinforcement . | . . . Assault . | . . . Garrison . | . . . Intercept . | . . . Searches Triggered . | . . . Construction Impeded . | . . . Haulers Reinforced . | . . . Active Scanning Responses . | . . . Cargo Convoy Interrupts . | . . . Stealth | -11 -10 -10 --------- Run | Yrd Mat Sub Distress Signals . | . . . Communications Jammed . | . . . Distress Signals . | . . . Times Spotted 22 | . 16 6 Peak Tracking Total 7 | . 7 2 Tactical Retreats 1 | . 1 . Traps | -11 -10 -10 ------- Run | Yrd Mat Sub Traps Triggered . | . . . Indirectly . | . . . Trap Hack Attempts . | . . . Triggered . | . . . Disarmed . | . . . Reprogrammed . | . . . Reused . | . . . Traps Extracted . | . . . Installed . | . . . Triggered . | . . . Machines | -11 -10 -10 ---------- Run | Yrd Mat Sub Machines Disabled . | . . . Max in Single Turn . | . . . Machines Repaired . | . . . Machines Dismantled . | . . . Machines Sabotaged . | . . . Overloaded Fab Kills . | . . . Hacking | -11 -10 -10 --------- Run | Yrd Mat Sub Machines Accessed 6 | . 6 . Terminals 5 | . 5 . Fabricators . | . . . Repair Stations . | . . . Recycling Units 1 | . 1 . Scanalyzers . | . . . Garrison Access . | . . . Total Hacks 20 | . 20 . Successful 13 | . 13 . Failed 7 | . 7 . Catastrophic . | . . . Database Lockouts . | . . . Manual . | . . . Terminals 17 | . 17 . Fabricators . | . . . Repair Stations . | . . . Recycling Units 3 | . 3 . Scanalyzers . | . . . Garrison Access . | . . . Terminal Hacks 12 | . 12 . Record 2 | . 2 . Robot Analysis 1 | . 1 . Emergency Access Points 1 | . 1 . Unreport Threat 1 | . 1 . Locate Traps 1 | . 1 . Dispatch Records 1 | . 1 . Patrol Status 1 | . 1 . Recall Reinforcements 1 | . 1 . Hauler Manifests 1 | . 1 . Registered Prototypes 1 | . 1 . Zone Layout 1 | . 1 . Fabricator Hacks . | . . . Repair Station Hacks . | . . . Recycling Unit Hacks 1 | . 1 . Report Inventory 1 | . 1 . Scanalyzer . | . . . Garrison Access Hacks . | . . . Unauthorized Hacks . | . . . Terminals . | . . . Fabricators . | . . . Repair Stations . | . . . Recycling Units . | . . . Scanalyzers . | . . . Garrison Access . | . . . Data Cores Recovered . | . . . Used . | . . . Hacking Detections 5 | . 5 . Full Trace Events . | . . . Feedback Events . | . . . Feedback Blocked . | . . . Robot Schematics Acquired . | . . . Robots Built . | . . . Authchips . | . . . Time . | . . . Total Robot Build Rating . | . . . Part Schematics Acquired . | . . . Parts Built . | . . . Authchips . | . . . Time . | . . . Total Part Build Rating . | . . . Parts Repaired . | . . . Time . | . . . Parts Recycled . | . . . Recycled Matter . | . . . Retrieved Matter . | . . . Retrieved Components . | . . . Parts Scanalyzed . | . . . Part Schematics Acquired . | . . . Parts Damaged . | . . . Bothacking | -11 -10 -10 ------------ Run | Yrd Mat Sub Used RIF Installer . | . . . Robots Hacked . | . . . Non-combat . | . . . Combat . | . . . Robot Hacks Applied . | . . . Relay Couplers Released . | . . . Fabnet Peak Effective % . | . . . Robots Rewired . | . . . Allies Hacked . | . . . Hacks Repelled . | . . . Allies | -11 -10 -10 -------- Run | Yrd Mat Sub Total Allies . | . . . Largest Group . | . . . Highest-Rated Group . | . . . Highest-Rated Ally . | . . . Total Orders . | . . . Ally Attacks . | . . . Total Damage . | . . . Kills . | . . . Allies Corrupted . | . . . Allies Melted . | . . . Intel | -11 -10 -10 ------- Run | Yrd Mat Sub Robot Analysis Total 1 | . 1 . Derelict Logs Recovered 2 | . . 2 Drone Launches . | . . . Drone Recoveries . | . . . Exploration | -11 -10 -10 ------------- Run | Yrd Mat Sub Turns Passed 1934 | 92 673 1169 Spaces Moved 1437 | 64 491 882 Core 3 | 3 . . Treads . | . . . Legs 1238 | . 356 882 Wheels 196 | 61 135 . Hover . | . . . Flight . | . . . Fastest Speed 50 | 50 80 120 Average Speed 115 | 85 110 120 Slowest Speed 190 | 100 120 190 Overloaded Moves . | . . . Propulsion Burnouts . | . . . Robots Hopped . | . . . Cave-ins Triggered . | . . . Exploration Rate (%) 37 | 3 60 48 Regions Visited 2 Branch Regions 1 Pre-discovered Areas . | . . . Known Exits Taken 1 | . 1 . Unknown Exits Taken 1 | 1 . . Scrap Searched 3 | . . 3 Spaces Dug . | . . . Terrain Destroyed 76 | . 41 35 Melee . | . . . Projectile . | . . . AOE 76 | . 41 35 Terrain Rammed . | . . . Walls Destroyed . | . . . Machines Disabled . | . . . Actions | -11 -10 -10 --------- Run | Yrd Mat Sub Total 1594 | 83 567 944 Wait 27 | . 5 22 Move 1435 | 63 490 882 Hop . | . . . Pick Up 15 | 4 4 7 Fast Attach 12 | 7 5 . Attach 2 | . 1 1 Detach 4 | 1 3 . Swap 12 | 1 7 4 Drop 11 | . 6 5 Fire 75 | 7 45 23 Melee . | . . . Ram 1 | . 1 . Kick . | . . . Crush . | . . . Escape Stasis . | . . . Rewire . | . . . Trap . | . . . Miscellaneous . | . . . Route ------- -11/Scrapyard -10/Materials (discovered 3 exits: [*Mat x2] / *Sub) -10/Subcaves History --------- Turn | Location | Event 17 | -11/Scrapyard | Discovered new exit (range 15) 93 | -11/Scrapyard | Entered Materials 316 | -10/Materials | Build established: Mutant 340 | -10/Materials | Discovered new exit (range 16) 411 | -10/Materials | Discovered new exit (range 15) 725 | -10/Materials | Discovered new exit (range 7) 764 | -10/Materials | Identified exit to Subcaves 766 | -10/Materials | Entered Subcaves 830 | -10/Subcaves | Learned Materials trap positions 1239 | -10/Subcaves | Shifting Twisted Machinery released Battle Rifle 1243 | -10/Subcaves | Shifting Twisted Machinery released Sub. Beam Cannon 1261 | -10/Subcaves | Shifting Twisted Machinery released Barrage Gun 1262 | -10/Subcaves | Shifting Twisted Machinery released Sub. Optics 1531 | -10/Subcaves | Learned Materials garrison access intel 1573 | -10/Subcaves | Ambushed by angry Subdweller bent on revenge 1586 | -10/Subcaves | Core integrity fell below 50% 1918 | -10/Subcaves | Disturbed a concealed Subdweller 1922 | -10/Subcaves | Shifting Twisted Machinery released Sub. Power Source 1923 | -10/Subcaves | Core integrity fell below 20% 1935 | -10/Subcaves | Destroyed by Y6-4JB(R) with Subdweller Shrapnel Launcher Last Messages --------------- Subatomizers dissect the Sub. Power Source. Searching scrap... Found Riot Gun. Found 37 Matter. Acquired 37 matter. Searching scrap... Found Piercing Trap. Found 47 Matter. Acquired 47 matter. Searching scrap... Found Sub. Optics. Found 42 Matter. Acquired 13 matter. Y6-4JB(R) angrily emerges from the Twisted Machinery. Aluminum Leg destroyed. Y6-4JB(R): "SUBSUUUUUB!" Y6-4JB(R) affixes Scrap Shield Fragment to Scrap Shield. Sub. Power Source falls loose from the Twisted Machinery. Beam Cannon destroyed. Sub. Power Source destroyed. Map ----- +----------------------------------------------------+ | ??????????????????????## ######???## #?????? | | ???????????????????????# #??## ##????? | | ??????????????????##???# #??# #???## | | ?????????????????## #??# ##??# #??# | | ???????????????### ### #?###### #?# | | ???????????????# #### #### ## # | | ???????????????# ###?# ##### # | | ???????????????# ##??## #??## # | | ???????????????# ##### ##### # | | ???????????????# ### # | | ???????????????### #### # | | ?????????????????## ##?# # | | ??????????????????## ### #### # | | ???????????????????# #??# ##### | | ???????????????###?# #??#######???? | | ???????????????# ## ##????????????? | | ??????????????## ##????????????? | | ??????????????# ###??????????? | | ??????????????# #### ## ##?????????? | | ??????????????# ###??## ### ##????????? | | ??????????????####??????## ## #????????? | | ?????????????#######?????# #????????? | | ???????????### # # ####### #????????? | | ???????????# #;;# ###????????? | | ?????????### ##??????????? | | ????????## @ #???????????? | | ????????#$ ;$ ###???????????? | | ?????????# R ;##### #?????????????? | | ????????#$ ;#???# #????????????? | | ????????## ; #??? ##????????????? | | ?????????### #??? #?????????????? | | ??????????# ; #??? ##?????????????? | | ??????????##### #;# ###??? #??????????????? | | ??????????????#### #???? #??????????????? | | ?????????????????# #???# #??????????????? | | ????????????????? """""* #???####??????????????? | | ????????????????# """""## #????????????????????? | | ???????????????? """"##?"" ????????????????????? | | ???????????????? ????????"" ???????????????????? | | ??????????????? ??????????????????????????????? | | ???????????????#????????????????????????????????? | | ????????????????????????????????????????????????? | | ????????????????????????????????????????????????? | | ????????????????????????????????????????????????? | | ????????????????????????????????????????????????? | | ????????????????????????????????????????????????? | | ????????????????????????????????????????????????? | | ????????????????????????????????????????????????? | | ????????????????????????????????????????????????? | | ????????????????????????????????????????????????? | +----------------------------------------------------+ Best States ------------- Heat Dissipation 25 Energy Generation 15 Energy Capacity 250 Matter Stores 300 Matter Capacity 300 Sight Range 18 Terrain Scan Density 10 Evasion (%) 55 Item Schematics ----------------- None Robot Schematics ------------------ None Fabricated ------------ Nothing Alien Tech Used ----------------- None Achievements -------------- None Challenges ------------ None Game ------ Seed SignalRefineryBooster Manual? 0 Play Time 00:28:30 Cumulative 6.0 hours Start 2024.11.26 @ 23:24:33 End 2024.11.26 @ 23:54:31 Sessions 1 Manual Loads 0 Difficulty Rogue Special Mode None Game No. 8 Rogue 8 Adventurer 0 Explorer 0 Win Type - Total 0 Types 0/0/0/0/0/0/0/0/0 Lore% 1 Gallery% 9 Achievement% 8 Wizard Run 0 Options --------- Layout 1 ASCII 0 Keyboard 1 Movement Numpad Keybinds 0 Fullscreen 1 Font 32/SmallcapsGlow Map View 65x17 Zoom Use 100% Tactical HUD 0 Map Filters NONE Filters NONE Steam 1 RUN: 5beec84b-9e7b-4d43-afca-373ccc1dd804